{"text_format":"1","workbook":"xlsx","n_sheets":2,"sheets":["Crea Spedizione","Source"],"not_rendered":{"charts":0,"images":3,"macros":1,"external_links":0,"defined_names":4,"comments":0,"pivot_tables":0},"unopened":[],"bounds":{"document_bytes":16777216,"sheet_cells":100000,"rows_first":2000,"rows_last":500,"rows_between":2000,"halvings":0,"cell_chars":16384,"cell_head_chars":4096},"cells_cut":0,"cells_raw":0,"read":"whole","date_system":"1900"}

{"sheet":"Crea Spedizione","index":0,"n_rows":60,"n_cols":12,"rows_kept":60,"cut":false,"hidden":false,"merged":[[47,9,47,11],[40,1,40,2],[40,3,40,11],[41,1,41,11],[44,9,44,11],[43,9,43,11],[42,1,42,11],[43,7,43,8],[44,7,44,8],[45,7,45,8],[46,7,46,8],[47,7,47,8],[46,9,46,11],[45,9,45,11],[38,1,38,2],[38,3,38,5],[38,6,38,7],[38,8,38,11],[39,1,39,2],[39,3,39,5],[39,6,39,7],[39,8,39,11],[36,1,36,2],[36,3,36,5],[36,6,36,7],[36,8,36,11],[37,1,37,2],[37,3,37,5],[37,6,37,7],[37,8,37,11],[34,1,34,2],[34,3,34,5],[34,6,34,7],[34,8,34,11],[35,1,35,2],[35,3,35,5],[35,6,35,7],[35,8,35,11],[30,1,30,2],[30,3,30,11],[31,1,31,11],[32,1,32,11],[33,1,33,5],[33,6,33,11],[28,1,28,2],[28,3,28,5],[28,6,28,11],[29,1,29,2],[29,3,29,5],[29,6,29,11],[26,1,26,2],[26,3,26,5],[27,1,27,2],[27,3,27,5],[27,6,27,11],[26,6,26,11],[22,3,22,5],[23,1,23,2],[23,3,23,5],[24,1,24,2],[24,3,24,5],[25,1,25,2],[25,3,25,5],[17,1,17,11],[18,1,18,11],[19,1,19,5],[19,6,19,11],[23,6,23,11],[21,1,21,2],[21,3,21,5],[20,1,20,2],[20,3,20,5],[22,1,22,2],[24,6,25,10],[24,11,25,11],[20,6,20,7],[21,6,21,7],[22,6,22,7],[22,9,22,11],[15,6,15,7],[16,6,16,7],[15,8,15,11],[16,8,16,11],[15,1,15,2],[15,3,15,5],[16,1,16,2],[16,3,16,5],[13,6,13,7],[14,6,14,7],[13,8,13,11],[14,8,14,11],[13,1,13,2],[13,3,13,5],[14,1,14,2],[14,3,14,5],[11,6,11,7],[12,6,12,7],[11,8,11,11],[12,8,12,11],[11,1,11,2],[11,3,11,5],[12,1,12,2],[12,3,12,5],[8,3,8,5],[9,6,9,7],[10,6,10,7],[9,8,9,11],[10,8,10,11],[9,1,9,2],[9,3,9,5],[10,1,10,2],[10,3,10,5],[8,6,8,7],[8,8,8,11],[8,1,8,2],[1,6,1,7],[2,6,2,7],[7,6,7,7],[7,8,7,11],[7,1,7,2],[7,3,7,5],[3,1,3,11],[4,1,4,11],[5,1,5,11],[6,1,6,5],[6,6,6,11],[1,8,1,9],[2,8,2,10],[57,7,57,8],[58,7,58,8],[53,9,53,11],[54,9,54,11],[55,9,55,11],[59,9,59,10],[48,7,48,8],[49,7,49,8],[50,7,50,8],[51,7,51,8],[52,7,52,8],[53,7,53,8],[54,7,54,8],[55,7,55,8],[56,7,56,8],[58,9,58,11],[57,9,57,11],[56,9,56,11],[50,9,50,11],[49,9,49,11],[52,9,52,11],[51,9,51,11],[48,9,48,11]]}
[]
[null,"operativo@getonline.it",null,"Modulo Crea Spedizione",null,null,"Data richiesta*",null,{"$f":"NOW()","v":"2020-10-23T12:25:25.100"}]
[null,"getexpressteam@gmail.com",null,"Modulo Crea Spedizione",null,null,"Compilato da*",null,"*campo obbligatorio"]
[null,"Crea spedizione e richiedi ritiro: Compilare il modulo in tutte le sue parti (*campo obbligatorio) ed inviarlo via mail a operativo@getonline.it. Il mittente riceverà via mail le etichette da applicare sui colli e tutta la documentazione necessaria per spedire in Italia e nel mondo. Indicativamente l’incaricato effettuerà il ritiro il giorno lavorativo successivo alla data della presente richiesta. IMPORTANTE: Se incompleto o contenente errori la richiesta non potrà essere presa in carico."]
[]
[null,"DETTAGLIO INDIRIZZI"]
[null,"CLIENTE / MITTENTE (chi paga la spedizione)",null,null,null,null,"DESTINATARIO"]
[null,"Ragione sociale*",null,"*campo obbligatorio",null,null,"Ragione sociale*",null,"*campo obbligatorio"]
[null,"Indirizzo*",null,"*campo obbligatorio",null,null,"Indirizzo*",null,"*campo obbligatorio"]
[null,"CAP*",null,"*campo obbligatorio",null,null,"CAP*",null,"*campo obbligatorio"]
[null,"Località*",null,"*campo obbligatorio",null,null,"Località*",null,"*campo obbligatorio"]
[null,"Provincia *",null,"*campo obbligatorio",null,null,"Provincia *",null,"*campo obbligatorio"]
[null,"Nazione *",null,"ITALY",null,null,"Nazione *",null,106]
[null,"Contatto *",null,"*campo obbligatorio",null,null,"Contatto *",null,"*campo obbligatorio"]
[null,"Telefono *",null,"*campo obbligatorio",null,null,"Telefono *",null,"*campo obbligatorio"]
[null,"Fax ",null,null,null,null,"Fax "]
[null,"Email *",null,"*campo obbligatorio",null,null,"Email *",null,"*campo obbligatorio"]
[]
[null,"DETTAGLIO RITIRO MERCE"]
[null,"RITIRO MERCE (compilare se diverso da cliente / mittente)",null,null,null,null,"ORARIO RITIRO MERCE"]
[null,"Ragione sociale*",null,"*campo obbligatorio",null,null,"Mattino*",null,"dalle",1,"alle",1]
[null,"Indirizzo*",null,"*campo obbligatorio",null,null,"Pomeriggio*",null,"dalle",1,"alle",1]
[null,"CAP*",null,"*campo obbligatorio",null,null,"Merce pronta*",null,"dalle",1]
[null,"Località*",null,"*campo obbligatorio"]
[null,"Provincia *",null,"*campo obbligatorio",null,null,"Non desidero il ritiro (barrare nel caso si volesse portare la spedizione direttamente in una filiale TNT o TNTpoint)"]
[null,"Nazione *",null,"106"]
[null,"Contatto *",null,"*campo obbligatorio"]
[null,"Telefono *",null,"*campo obbligatorio"]
[null,"Fax "]
[null,"Email *",null,"*campo obbligatorio"]
[null,"Note ritiro"]
[]
[null,"DETTAGLIO SPEDIZIONE"]
[null,"DATI SPEDIZIONE",null,null,null,null,"REQUISITI DOGANALI (compilare solo spedizioni Extra-UE non documenti)"]
[null,"Data spedizione*",null,"*campo obbligatorio",null,null,"Partita IVA mitt.*"]
[null,"Servizio*",null,1,null,null,"Partita IVA dest.*"]
[null,"Pagamento",null,"CLIENTE",null,null,"Valore doganale*",null,0]
[null,"Riferimento",null,null,null,null,"Voce doganale (taric)*"]
[null,"Contrassegno",null,0,null,null,"Tipo esportazione*"]
[null,"Assicurazione",null,0]
[null,"Note spedizione"]
[]
[null,"DETTAGLIO MERCE"]
[null,"Colli*","Lun. (cm)*","Lar. (cm)*","Alt. (cm)*","Peso (kg)*","Vol. (mc)","Imballo*",null,"Contenuto*"]
[null,0,0,0,0,0,{"$f":"B45*(C45*D45*E45)/1000000","v":0},"*campo obbligatorio",null,"*campo obbligatorio"]
[null,null,null,null,null,null,{"$f":"B46*(C46*D46*E46)/1000000","v":0}]
[null,null,null,null,null,null,0]
[null,null,null,null,null,null,0]
[null,null,null,null,null,null,0]
[null,null,null,null,null,null,0]
[null,null,null,null,null,null,0]
[null,null,null,null,null,null,0]
[null,null,null,null,null,null,0]
[null,null,null,null,null,null,0]
[null,null,null,null,null,null,0]
[null,null,null,null,null,null,0]
[null,null,null,null,null,null,0]
[null,null,null,null,null,null,0]
[null,null,null,null,null,null,0]
[null,"totale colli:",{"$f":"SUM(B45:B59)","v":0},"totale kg:",{"$f":"SUM(F45:F59)","v":0},"totale mc:",{"$f":"SUM(G45:G59)","v":0},"totale kg p/v:",{"$f":"G60*(LOOKUP(D36,Source!$A$2:$A$15,Source!$C$2:$C$15))","v":0},"Totale kg Peso Tassabile:",null,{"$f":"IF(E60>I60,E60,I60)","v":0}]

{"sheet":"Source","index":1,"n_rows":245,"n_cols":8,"rows_kept":245,"cut":false,"hidden":true,"merged":[]}
["ID","SERVIZIO","1MC=KG",null,"ORARIO",null,"NAZIONE","COD_ISO"]
[1,"Seleziona",0,null,"Seleziona",null,"Seleziona"]
[2,"URBAN EXPRESS",300,null,"09:00",null,"Afghanistan","AF"]
[3,"DOMESTIC EXPRESS",300,null,"09:30",null,"Albania","AL"]
[4,"DOMESTIC ECONOMY",300,null,"10:00",null,"Algeria","DZ"]
[5,"DOMESTIC 10:00 EXPRESS",300,null,"10:30",null,"American Samoa","AS"]
[6,"DOMESTIC 12:00 EXPRESS",300,null,"11:00",null,"Andorra","AD"]
[7,"INTERNATIONAL EXPRESS",200,null,"11:30",null,"Angola","AO"]
[8,"INTERNATIONAL ECONOMY",250,null,"12:00",null,"Anguilla","AI"]
[9,"INTERNATIONAL 10:00 EXPRESS",200,null,"12:30",null,"Antarctica","AQ"]
[10,"INTERNATIONAL 12:00 EXPRESS",200,null,"13:00",null,"Antigua and Barbuda","AG"]
[11,"INTERNATIONAL 12:00 ECONOMY",250,null,"13:30",null,"Argentina","AR"]
[12,"SPECIAL SERVICE",300,null,"14:00",null,"Armenia","AM"]
[null,null,null,null,"14:30",null,"Aruba","AW"]
[null,null,null,null,"15:00",null,"Australia","AU"]
[null,null,null,null,"15:30",null,"Austria","AT"]
[null,null,null,null,"16:00",null,"Azerbaidjan","AZ"]
[null,null,null,null,"16:30",null,"Bahamas","BS"]
[null,null,null,null,"17:00",null,"Bahrain","BH"]
[null,null,null,null,"17:30",null,"Bangladesh","BD"]
[null,null,null,null,"18:00",null,"Barbados","BB"]
[null,null,null,null,null,null,"Belarus","BY"]
[null,null,null,null,null,null,"Belgium","BE"]
[null,null,null,null,null,null,"Belize","BZ"]
[null,null,null,null,null,null,"Benin","BJ"]
[null,null,null,null,null,null,"Bermuda","BM"]
[null,null,null,null,null,null,"Bhutan","BT"]
[null,null,null,null,null,null,"Bolivia","BO"]
[null,null,null,null,null,null,"Bosnia-Herzegovina","BA"]
[null,null,null,null,null,null,"Botswana","BW"]
[null,null,null,null,null,null,"Bouvet Island","BV"]
[null,null,null,null,null,null,"Brazil","BR"]
[null,null,null,null,null,null,"British Indian Ocean Territory","IO"]
[null,null,null,null,null,null,"Brunei Darussalam","BN"]
[null,null,null,null,null,null,"Bulgaria","BG"]
[null,null,null,null,null,null,"Burkina Faso","BF"]
[null,null,null,null,null,null,"Burundi","BI"]
[null,null,null,null,null,null,"Cambodia","KH"]
[null,null,null,null,null,null,"Cameroon","CM"]
[null,null,null,null,null,null,"Canada","CA"]
[null,null,null,null,null,null,"Cape Verde","CV"]
[null,null,null,null,null,null,"Cayman Islands","KY"]
[null,null,null,null,null,null,"Central African Republic","CF"]
[null,null,null,null,null,null,"Chad","TD"]
[null,null,null,null,null,null,"Chile","CL"]
[null,null,null,null,null,null,"China","CN"]
[null,null,null,null,null,null,"Christmas Island","CX"]
[null,null,null,null,null,null,"Cocos (Keeling) Islands","CC"]
[null,null,null,null,null,null,"Colombia","CO"]
[null,null,null,null,null,null,"Commercial","COM"]
[null,null,null,null,null,null,"Comoros","KM"]
[null,null,null,null,null,null,"Congo","CG"]
[null,null,null,null,null,null,"Cook Islands","CK"]
[null,null,null,null,null,null,"Costa Rica","CR"]
[null,null,null,null,null,null,"Croatia","HR"]
[null,null,null,null,null,null,"Cuba","CU"]
[null,null,null,null,null,null,"Cyprus","CY"]
[null,null,null,null,null,null,"Czech Republic","CZ"]
[null,null,null,null,null,null,"Denmark","DK"]
[null,null,null,null,null,null,"Djibouti","DJ"]
[null,null,null,null,null,null,"Dominica","DM"]
[null,null,null,null,null,null,"Dominican Republic","DO"]
[null,null,null,null,null,null,"East Timor","TP"]
[null,null,null,null,null,null,"Ecuador","EC"]
[null,null,null,null,null,null,"Egypt","EG"]
[null,null,null,null,null,null,"El Salvador","SV"]
[null,null,null,null,null,null,"Equatorial Guinea","GQ"]
[null,null,null,null,null,null,"Eritrea","ER"]
[null,null,null,null,null,null,"Estonia","EE"]
[null,null,null,null,null,null,"Ethiopia","ET"]
[null,null,null,null,null,null,"Falkland Islands","FK"]
[null,null,null,null,null,null,"Faroe Islands","FO"]
[null,null,null,null,null,null,"Fiji","FJ"]
[null,null,null,null,null,null,"Finland","FI"]
[null,null,null,null,null,null,"France","FR"]
[null,null,null,null,null,null,"French Guyana","GF"]
[null,null,null,null,null,null,"French Southern Territories","TF"]
[null,null,null,null,null,null,"Gabon","GA"]
[null,null,null,null,null,null,"Gambia","GM"]
[null,null,null,null,null,null,"Georgia","GE"]
[null,null,null,null,null,null,"Germany","DE"]
[null,null,null,null,null,null,"Ghana","GH"]
[null,null,null,null,null,null,"Gibraltar","GI"]
[null,null,null,null,null,null,"Great Britain","GB"]
[null,null,null,null,null,null,"Greece","GR"]
[null,null,null,null,null,null,"Greenland","GL"]
[null,null,null,null,null,null,"Grenada","GD"]
[null,null,null,null,null,null,"Guadeloupe (French)","GP"]
[null,null,null,null,null,null,"Guam (USA)","GU"]
[null,null,null,null,null,null,"Guatemala","GT"]
[null,null,null,null,null,null,"Guinea","GN"]
[null,null,null,null,null,null,"Guinea Bissau","GW"]
[null,null,null,null,null,null,"Guyana","GY"]
[null,null,null,null,null,null,"Haiti","HT"]
[null,null,null,null,null,null,"Heard and McDonald Islands","HM"]
[null,null,null,null,null,null,"Honduras","HN"]
[null,null,null,null,null,null,"Hong Kong","HK"]
[null,null,null,null,null,null,"Hungary","HU"]
[null,null,null,null,null,null,"Iceland","IS"]
[null,null,null,null,null,null,"India","IN"]
[null,null,null,null,null,null,"Indonesia","ID"]
[null,null,null,null,null,null,"International","INT"]
[null,null,null,null,null,null,"Iran","IR"]
[null,null,null,null,null,null,"Iraq","IQ"]
[null,null,null,null,null,null,"Ireland","IE"]
[null,null,null,null,null,null,"Israel","IL"]
[null,null,null,null,null,null,"Italy","IT"]
[null,null,null,null,null,null,"Ivory Coast (Cote D'Ivoire)","CI"]
[null,null,null,null,null,null,"Jamaica","JM"]
[null,null,null,null,null,null,"Japan","JP"]
[null,null,null,null,null,null,"Jordan","JO"]
[null,null,null,null,null,null,"Kazakhstan","KZ"]
[null,null,null,null,null,null,"Kenya","KE"]
[null,null,null,null,null,null,"Kiribati","KI"]
[null,null,null,null,null,null,"Kuwait","KW"]
[null,null,null,null,null,null,"Kyrgyzstan","KG"]
[null,null,null,null,null,null,"Laos","LA"]
[null,null,null,null,null,null,"Latvia","LV"]
[null,null,null,null,null,null,"Lebanon","LB"]
[null,null,null,null,null,null,"Lesotho","LS"]
[null,null,null,null,null,null,"Liberia","LR"]
[null,null,null,null,null,null,"Libya","LY"]
[null,null,null,null,null,null,"Liechtenstein","LI"]
[null,null,null,null,null,null,"Lithuania","LT"]
[null,null,null,null,null,null,"Luxembourg","LU"]
[null,null,null,null,null,null,"Macau","MO"]
[null,null,null,null,null,null,"Macedonia","MK"]
[null,null,null,null,null,null,"Madagascar","MG"]
[null,null,null,null,null,null,"Malawi","MW"]
[null,null,null,null,null,null,"Malaysia","MY"]
[null,null,null,null,null,null,"Maldives","MV"]
[null,null,null,null,null,null,"Mali","ML"]
[null,null,null,null,null,null,"Malta","MT"]
[null,null,null,null,null,null,"Marshall Islands","MH"]
[null,null,null,null,null,null,"Martinique (French)","MQ"]
[null,null,null,null,null,null,"Mauritania","MR"]
[null,null,null,null,null,null,"Mauritius","MU"]
[null,null,null,null,null,null,"Mayotte","YT"]
[null,null,null,null,null,null,"Mexico","MX"]
[null,null,null,null,null,null,"Micronesia","FM"]
[null,null,null,null,null,null,"Moldavia","MD"]
[null,null,null,null,null,null,"Monaco","MC"]
[null,null,null,null,null,null,"Mongolia","MN"]
[null,null,null,null,null,null,"Montserrat","MS"]
[null,null,null,null,null,null,"Morocco","MA"]
[null,null,null,null,null,null,"Mozambique","MZ"]
[null,null,null,null,null,null,"Myanmar","MM"]
[null,null,null,null,null,null,"Namibia","NA"]
[null,null,null,null,null,null,"Nauru","NR"]
[null,null,null,null,null,null,"Nepal","NP"]
[null,null,null,null,null,null,"Netherlands","NL"]
[null,null,null,null,null,null,"Netherlands Antilles","AN"]
[null,null,null,null,null,null,"Network","NET"]
[null,null,null,null,null,null,"Neutral Zone","NT"]
[null,null,null,null,null,null,"New Caledonia (French)","NC"]
[null,null,null,null,null,null,"New Zealand","NZ"]
[null,null,null,null,null,null,"Nicaragua","NI"]
[null,null,null,null,null,null,"Niger","NE"]
[null,null,null,null,null,null,"Nigeria","NG"]
[null,null,null,null,null,null,"Niue","NU"]
[null,null,null,null,null,null,"Norfolk Island","NF"]
[null,null,null,null,null,null,"North Korea","KP"]
[null,null,null,null,null,null,"Northern Mariana Islands","MP"]
[null,null,null,null,null,null,"Norway","NO"]
[null,null,null,null,null,null,"Oman","OM"]
[null,null,null,null,null,null,"Pakistan","PK"]
[null,null,null,null,null,null,"Palau","PW"]
[null,null,null,null,null,null,"Panama","PA"]
[null,null,null,null,null,null,"Papua New Guinea","PG"]
[null,null,null,null,null,null,"Paraguay","PY"]
[null,null,null,null,null,null,"Peru","PE"]
[null,null,null,null,null,null,"Philippines","PH"]
[null,null,null,null,null,null,"Pitcairn Island","PN"]
[null,null,null,null,null,null,"Poland","PL"]
[null,null,null,null,null,null,"Polynesia (French)","PF"]
[null,null,null,null,null,null,"Portugal","PT"]
[null,null,null,null,null,null,"Puerto Rico","PR"]
[null,null,null,null,null,null,"Qatar","QA"]
[null,null,null,null,null,null,"Reunion (French)","RE"]
[null,null,null,null,null,null,"Romania","RO"]
[null,null,null,null,null,null,"Russian Federation","RU"]
[null,null,null,null,null,null,"Rwanda","RW"]
[null,null,null,null,null,null,"S. Georgia & S. Sandwich Isls.","GS"]
[null,null,null,null,null,null,"Saint Helena","SH"]
[null,null,null,null,null,null,"Saint Kitts & Nevis Anguilla","KN"]
[null,null,null,null,null,null,"Saint Lucia","LC"]
[null,null,null,null,null,null,"Saint Pierre and Miquelon","PM"]
[null,null,null,null,null,null,"Saint Tome (Sao Tome) and Principe","ST"]
[null,null,null,null,null,null,"Saint Vincent & Grenadines","VC"]
[null,null,null,null,null,null,"Samoa","WS"]
[null,null,null,null,null,null,"San Marino","SM"]
[null,null,null,null,null,null,"Saudi Arabia","SA"]
[null,null,null,null,null,null,"Senegal","SN"]
[null,null,null,null,null,null,"Serbia","RS"]
[null,null,null,null,null,null,"Seychelles","SC"]
[null,null,null,null,null,null,"Sierra Leone","SL"]
[null,null,null,null,null,null,"Singapore","SG"]
[null,null,null,null,null,null,"Slovak Republic","SK"]
[null,null,null,null,null,null,"Slovenia","SI"]
[null,null,null,null,null,null,"Solomon Islands","SB"]
[null,null,null,null,null,null,"Somalia","SO"]
[null,null,null,null,null,null,"South Africa","ZA"]
[null,null,null,null,null,null,"South Korea","KR"]
[null,null,null,null,null,null,"Spain","ES"]
[null,null,null,null,null,null,"Sri Lanka","LK"]
[null,null,null,null,null,null,"Sudan","SD"]
[null,null,null,null,null,null,"Suriname","SR"]
[null,null,null,null,null,null,"Svalbard and Jan Mayen Islands","SJ"]
[null,null,null,null,null,null,"Swaziland","SZ"]
[null,null,null,null,null,null,"Sweden","SE"]
[null,null,null,null,null,null,"Switzerland","CH"]
[null,null,null,null,null,null,"Syria","SY"]
[null,null,null,null,null,null,"Tadjikistan","TJ"]
[null,null,null,null,null,null,"Taiwan","TW"]
[null,null,null,null,null,null,"Tanzania","TZ"]
[null,null,null,null,null,null,"Thailand","TH"]
[null,null,null,null,null,null,"Togo","TG"]
[null,null,null,null,null,null,"Tokelau","TK"]
[null,null,null,null,null,null,"Tonga","TO"]
[null,null,null,null,null,null,"Trinidad and Tobago","TT"]
[null,null,null,null,null,null,"Tunisia","TN"]
[null,null,null,null,null,null,"Turkey","TR"]
[null,null,null,null,null,null,"Turkmenistan","TM"]
[null,null,null,null,null,null,"Turks and Caicos Islands","TC"]
[null,null,null,null,null,null,"Tuvalu","TV"]
[null,null,null,null,null,null,"Uganda","UG"]
[null,null,null,null,null,null,"Ukraine","UA"]
[null,null,null,null,null,null,"United Arab Emirates","AE"]
[null,null,null,null,null,null,"United Kingdom","UK"]
[null,null,null,null,null,null,"United States","US"]
[null,null,null,null,null,null,"Uruguay","UY"]
[null,null,null,null,null,null,"Uzbekistan","UZ"]
[null,null,null,null,null,null,"Vanuatu","VU"]
[null,null,null,null,null,null,"Vatican City State","VA"]
[null,null,null,null,null,null,"Venezuela","VE"]
[null,null,null,null,null,null,"Vietnam","VN"]
[null,null,null,null,null,null,"Virgin Islands (British)","VG"]
[null,null,null,null,null,null,"Virgin Islands (USA)","VI"]
[null,null,null,null,null,null,"Wallis and Futuna Islands","WF"]
[null,null,null,null,null,null,"Western Sahara","EH"]
[null,null,null,null,null,null,"Yemen","YE"]
[null,null,null,null,null,null,"Yugoslavia","YU"]
[null,null,null,null,null,null,"Zaire","ZR"]
[null,null,null,null,null,null,"Zambia","ZM"]
[null,null,null,null,null,null,"Zimbawe","ZW"]